bitfinex/quotes_SOLUSD_20250102
["timestamp","ask_amount","ask_price","bid_price","bid_amount"]
[1735829780816,19.88270402,208.7,208.59,1.5252]
[1735829780817,20.0,208.65,208.59,1.5252]
[1735829781143,19.88270402,208.6,208.54,6.1385]
[1735829781327,19.88270402,208.59,208.54,19.02820214]
[1735829781733,19.88270402,208.57,208.54,12.88970214]
[1735829782445,19.88270402,208.55,208.54,12.88970214]
[1735829782641,19.88270402,208.56,208.54,12.88970214]
[1735829783239,19.88270402,208.55,208.54,12.88970214]
[1735829783418,19.88270402,208.58,208.54,12.88970214]
[1735829783825,19.88270402,208.6,208.54,12.88970214]
[1735829784140,19.88270402,208.66,208.58,19.88270402]
[1735829784337,19.88270402,208.66,208.58,32.97576836]
[1735829785261,19.88270402,208.62,208.58,13.09306434]
[1735829785542,31.86170402,208.7,208.58,13.09306434]
[1735829785543,19.88270402,208.59,208.58,12.98427175]
[1735829785749,20.0,208.57,208.53,1.647]
[1735829785929,19.88270402,208.58,208.53,1.647]
[1735829786245,19.88270402,208.6,208.54,12.86407082]
[1735829786448,31.86170402,208.7,208.54,32.74677484]
[1735829786449,19.88270402,208.62,208.54,32.74677484]
[1735829786753,19.88270402,208.6,208.54,12.86407082]
[1735829786947,19.88270402,208.55,208.54,12.86407082]
[1735829788333,19.88270402,208.55,208.54,12.64221208]
[1735829788721,19.88270402,208.55,208.5,13.32321191]
[1735829789426,19.88270402,208.54,208.5,12.90421522]
[1735829789650,19.88270402,208.58,208.5,12.90421522]
[1735829790426,19.88270402,208.56,208.5,12.90421522]
[1735829790637,24.153354,208.65,208.5,12.90421522]
[1735829790638,19.88270402,208.55,208.5,12.90421522]
[1735829790931,19.88270402,208.55,208.5,12.44165572]
[1735829791528,19.88270402,208.57,208.5,12.65000828]
[1735829791963,19.88270402,208.55,208.5,12.65000828]
[1735829792159,19.88270402,208.52,208.5,12.65000828]
[1735829792332,19.88270402,208.51,208.5,12.65000828]
[1735829792533,19.88270402,208.51,208.5,13.05009014]
[1735829792856,19.88270402,208.51,208.41,21.51490402]
[1735829793159,19.88270402,208.51,208.43,19.88270402]
[1735829793457,0.37647,208.58,208.45,19.88270402]
[1735829793458,19.88270402,208.53,208.45,19.88270402]
[1735829793677,19.88270402,208.55,208.47,19.88270402]
[1735829793837,19.88270402,208.55,208.47,33.05665725]
[1735829794039,7.40126342,208.71,208.54,19.88270402]
[1735829794356,19.88270402,208.64,208.56,19.88270402]
[1735829794566,19.88270402,208.62,208.56,13.17395323]
[1735829794753,19.88270402,208.6,208.56,12.85351494]
[1735829794949,19.88270402,208.62,208.56,12.85351494]
[1735829795260,19.88270402,208.62,208.55,12.85351494]
[1735829796340,19.88270402,208.67,208.6,19.88270402]
[1735829796537,19.88270402,208.67,208.59,23.776884]
[1735829796538,19.88270402,208.71,208.62,19.88270402]
[1735829796738,19.88270402,208.71,208.64,19.88270402]
[1735829796948,19.88270402,208.71,208.64,32.40826587]
[1735829797547,19.88270402,208.71,208.64,12.52556185]
[1735829797743,19.88270402,208.69,208.64,12.52556185]
[1735829797951,19.88270402,208.71,208.64,13.05539852]
[1735829798267,19.88270402,208.73,208.64,19.88270402]
[1735829798434,19.88270402,208.73,208.65,13.05539852]
[1735829798635,19.88270402,208.71,208.65,13.05539852]
[1735829800039,0.12549,208.78,208.65,13.05539852]
[1735829800244,19.88270402,208.72,208.65,13.05539852]
[1735829800668,19.88270402,208.72,208.66,13.03537375]
[1735829801044,0.12549,208.78,208.66,13.03537375]
[1735829801045,19.88270402,208.68,208.66,13.03537375]
[1735829801345,19.88270402,208.68,208.62,13.03537375]
[1735829801545,19.88270402,208.64,208.62,13.03537375]
[1735829804171,19.88270402,208.66,208.62,13.03537375]
[1735829804385,11.9759,208.76,208.62,13.03537375]
[1735829804555,19.88270402,208.68,208.62,13.03537375]
[1735829805657,19.88270402,208.66,208.62,13.03537375]
[1735829806152,19.88270402,208.63,208.62,13.03537375]
[1735829806353,20.0,208.6,208.56,1.5089]
[1735829806612,19.88270402,208.57,208.56,1.5089]
[1735829806879,19.88270402,208.57,208.56,13.00522266]
[1735829807079,19.88270402,208.57,208.52,13.00522266]
[1735829807286,19.88270402,208.54,208.52,13.00522266]
[1735829807496,19.88270402,208.53,208.52,13.00522266]
[1735829807794,19.88270402,208.53,208.52,12.6848457]
[1735829807992,19.88270402,208.53,208.46,6.4147]
[1735829808278,19.88270402,208.48,208.45,1.5659]
[1735829808657,19.88270402,208.49,208.45,1.5659]
[1735829809174,0.25098,208.56,208.45,14.12284555]
[1735829809373,19.88270402,208.51,208.45,14.12284555]
[1735829809887,19.88270402,208.55,208.47,19.88270402]
[1735829810072,19.88270402,208.52,208.47,12.45016994]
[1735829810281,19.88270402,208.51,208.47,12.45016994]
[1735829810484,19.88270402,208.52,208.47,12.45016994]
[1735829810789,19.88270402,208.52,208.46,13.16147022]
[1735829810986,19.88270402,208.53,208.46,13.16147022]
[1735829811166,19.88270402,208.52,208.46,13.16147022]
[1735829811366,36.138554,208.59,208.46,13.16147022]
[1735829811367,20.0,208.56,208.46,13.16147022]
[1735829811567,19.88270402,208.52,208.46,13.16147022]
[1735829814360,19.88270402,208.56,208.48,19.88270402]
[1735829814565,19.88270402,208.58,208.5,19.88270402]
[1735829814780,19.88270402,208.58,208.51,13.11779458]
[1735829815179,19.88270402,208.56,208.51,13.11779458]
[1735829815497,19.88270402,208.53,208.49,13.11779458]
[1735829815797,19.88270402,208.55,208.49,13.13744442]
[1735829815999,19.88270402,208.51,208.49,13.13744442]
[1735829816295,19.88270402,208.51,208.46,13.13744442]
[1735829817095,19.88270402,208.49,208.46,13.13744442]
[1735829818017,19.88270402,208.51,208.46,13.13744442]
[1735829818913,19.88270402,208.53,208.46,13.13744442]
[1735829819089,19.88270402,208.57,208.48,19.88270402]
[1735829819287,19.88270402,208.57,208.45,2.28523839]
[1735829819288,19.88270402,208.57,208.5,19.88270402]
[1735829819621,19.88270402,208.61,208.54,19.88270402]
[1735829819919,19.88270402,208.63,208.56,1.627]
[1735829820087,19.88270402,208.63,208.56,14.65418301]
[1735829820287,19.88270402,208.63,208.57,12.69699693]
[1735829820486,19.88270402,208.65,208.58,19.88270402]
[1735829820711,19.88270402,208.65,208.58,32.8005221]
[1735829820919,19.88270402,208.67,208.59,19.88270402]
[1735829821093,19.88270402,208.68,208.6,19.88270402]
[1735829821287,19.88270402,208.65,208.6,12.91781808]
[1735829821714,19.88270402,208.67,208.6,12.91781808]
[1735829821895,19.88270402,208.67,208.6,12.48018169]
[1735829822095,19.88270402,208.66,208.6,12.48018169]
[1735829822302,19.88270402,208.65,208.6,12.48018169]
[1735829822495,19.88270402,208.67,208.6,12.48018169]
[1735829822718,19.88270402,208.69,208.61,12.80455884]
[1735829823420,19.88270402,208.65,208.61,12.80455884]
[1735829823588,19.88270402,208.66,208.61,12.62819705]
[1735829823914,19.88270402,208.67,208.59,32.51090107]
[1735829824095,19.88270402,208.68,208.6,32.51090107]
[1735829824287,19.88270402,208.69,208.62,19.88270402]
[1735829824490,19.88270402,208.67,208.62,12.62819705]
[1735829824690,20.0,208.71,208.62,12.43608128]
[1735829824691,19.88270402,208.64,208.62,12.43608128]
[1735829825012,20.0,208.71,208.6,19.88270402]
[1735829825013,19.88270402,208.67,208.6,19.88270402]
[1735829825318,19.88270402,208.67,208.6,32.3187853]
[1735829825623,19.88270402,208.69,208.61,12.43608128]
[1735829825921,19.88270402,208.67,208.61,12.43608128]
[1735829826394,19.88270402,208.69,208.62,12.98376857]
[1735829826594,19.88270402,208.69,208.62,13.0907376]
[1735829827033,19.88270402,208.66,208.62,13.0907376]
[1735829827522,19.88270402,208.66,208.62,12.88314974]
[1735829827727,19.88270402,208.68,208.62,12.88314974]
[1735829827933,19.88270402,208.72,208.66,19.88270402]
[1735829828145,19.88270402,208.72,208.67,1.5709]
[1735829828345,19.88270402,208.72,208.67,14.45404974]
[1735829828501,19.88270402,208.71,208.67,14.45404974]
[1735829828845,19.88270402,208.68,208.67,12.88314974]
[1735829829009,19.88270402,208.68,208.67,12.84059484]
[1735829829518,19.88270402,208.68,208.63,12.84059484]
[1735829830009,4.99999999,208.77,208.63,12.84059484]
[1735829830010,19.88270402,208.66,208.63,12.84059484]
[1735829830218,19.88270402,208.64,208.63,12.84059484]
[1735829830702,19.88270402,208.66,208.63,12.84059484]
[1735829830897,19.88270402,208.68,208.63,12.84059484]
[1735829831337,19.88270402,208.72,208.65,19.88270402]
[1735829831509,19.88270402,208.75,208.67,19.88270402]
[1735829831706,19.88270402,208.75,208.67,32.54601906]
[1735829832308,19.88270402,208.75,208.68,12.66331504]
[1735829832518,19.88270402,208.77,208.69,19.88270402]
[1735829832711,19.88270402,208.77,208.69,32.68882506]
[1735829833263,19.88270402,208.76,208.69,32.68882506]
[1735829833464,19.88270402,208.74,208.69,12.80612104]
[1735829833668,19.88270402,208.74,208.69,12.4658315]
[1735829833967,11.9714,208.84,208.7,19.88270402]
[1735829833968,19.88270402,208.78,208.7,19.88270402]
[1735829834262,19.88270402,208.78,208.7,32.34853552]
[1735829834767,19.88270402,208.78,208.71,7.7331]
[1735829834943,19.88270402,208.78,208.71,20.53620878]
[1735829835440,19.88270402,208.74,208.71,14.42440878]
[1735829837946,19.88270402,208.74,208.71,12.80310878]
[1735829838138,19.88270402,208.72,208.71,12.99962811]
[1735829838457,19.88270402,208.72,208.68,12.99962811]
[1735829840332,0.37647,208.78,208.68,12.99962811]
[1735829840333,19.88270402,208.7,208.68,12.99962811]
[1735829840636,19.88270402,208.69,208.68,12.99962811]
[1735829840953,19.88270402,208.69,208.68,12.44246374]
[1735829841162,19.88270402,208.71,208.64,19.88270402]
[1735829841475,23.776884,208.76,208.64,12.44246374]
[1735829841476,19.88270402,208.69,208.64,12.44246374]
[1735829841759,19.88270402,208.67,208.64,6.13487757]
[1735829842137,19.88270402,208.65,208.64,6.13487757]
[1735829842637,20.00819402,208.65,208.64,3.27068237]
[1735829842837,20.00819402,208.65,208.56,8.0861]
[1735829842838,20.0,208.62,208.56,1.6363]
[1735829843138,19.88270402,208.57,208.56,3.27068237]
[1735829843540,11.5824,208.69,208.51,27.96880402]
[1735829843541,19.88270402,208.59,208.51,27.96880402]
[1735829844479,19.88270402,208.57,208.51,8.0861]
[1735829844655,19.88270402,208.54,208.51,1.6363]
[1735829845457,19.88270402,208.52,208.51,1.6363]
[1735829845667,19.88270402,208.52,208.46,8.0938]
[1735829847391,5.0,208.63,208.47,19.88270402]
[1735829847392,19.88270402,208.56,208.47,19.88270402]
[1735829847565,19.88270402,208.54,208.47,19.88270402]
[1735829848152,19.88270402,208.51,208.46,8.0938]
[1735829848667,19.88270402,208.5,208.46,1.644]
[1735829849054,19.88270402,208.49,208.46,1.644]
[1735829849272,19.88270402,208.48,208.46,1.644]
[1735829849950,19.88270402,208.49,208.46,1.644]
[1735829850147,19.88270402,208.52,208.46,1.644]
[1735829850368,19.88270402,208.53,208.46,21.52670402]
[1735829850652,19.88270402,208.52,208.46,1.644]
[1735829850858,19.88270402,208.53,208.46,1.644]
[1735829851074,19.88270402,208.53,208.46,21.52670402]
[1735829851277,19.88270402,208.56,208.48,19.88270402]
[1735829852207,19.88270402,208.54,208.46,21.52670402]
[1735829852500,19.88270402,208.52,208.46,1.644]
[1735829853909,19.88270402,208.53,208.46,1.644]
[1735829854190,19.88270402,208.53,208.46,21.52670402]
[1735829854687,19.88270402,208.54,208.46,21.52670402]
[1735829855461,20.0,208.57,208.46,21.52670402]
[1735829855668,19.88270402,208.55,208.46,21.52670402]
[1735829856196,19.88270402,208.59,208.5,19.88270402]
[1735829856488,19.88270402,208.63,208.54,19.88270402]
[1735829856694,19.88270402,208.63,208.55,1.6516]
[1735829856863,19.88270402,208.61,208.55,1.6516]
[1735829857064,19.88270402,208.63,208.55,1.6516]
[1735829857280,19.88270402,208.63,208.56,19.88270402]
[1735829857480,19.88270402,208.65,208.56,19.88270402]
[1735829858786,19.88270402,208.63,208.56,19.88270402]
[1735829858993,19.88270402,208.63,208.55,2.37056898]
[1735829858994,19.88270402,208.63,208.55,1.6516]
[1735829861264,16.97819999,208.72,208.6,19.88270402]
[1735829861496,19.88270402,208.67,208.59,6.2166]
[1735829861691,19.88270402,208.65,208.59,6.2166]
[1735829861897,19.88270402,208.61,208.55,1.6516]
[1735829862067,19.88270402,208.58,208.55,1.6516]
[1735829863387,19.88270402,208.6,208.55,1.6516]
[1735829863773,19.88270402,208.62,208.55,1.6516]
[1735829864790,11.9807,208.67,208.55,1.6516]
[1735829864791,39.88270402,208.64,208.55,1.6516]
[1735829865487,39.88270402,208.64,208.56,19.88270402]
[1735829867110,19.88270402,208.66,208.59,19.88270402]
[1735829867265,19.88270402,208.68,208.59,19.88270402]
[1735829867671,19.88270402,208.66,208.59,19.88270402]
[1735829867895,19.88270402,208.68,208.6,6.4524]
[1735829868703,19.88270402,208.64,208.57,19.88270402]
[1735829868869,19.88270402,208.64,208.55,8.63560363]
[1735829868870,19.88270402,208.62,208.55,7.9168]
[1735829869077,19.88270402,208.6,208.55,7.9168]
[1735829869301,19.88270402,208.58,208.55,1.6516]
[1735829869609,19.88270402,208.56,208.55,1.6516]
[1735829869899,19.88270402,208.58,208.55,1.6516]
[1735829871496,19.88270402,208.61,208.55,1.6516]
[1735829871687,19.88270402,208.59,208.55,1.6516]
[1735829873281,19.88270402,208.63,208.55,21.53430402]
[1735829873491,19.88270402,208.65,208.55,21.53430402]
[1735829873895,11.9795,208.69,208.55,21.53430402]
[1735829873896,19.88270402,208.63,208.55,21.53430402]
[1735829874591,19.88270402,208.61,208.55,1.6516]
[1735829874792,19.88270402,208.63,208.55,21.53430402]
[1735829875691,19.88270402,208.61,208.55,1.6516]
[1735829875887,19.88270402,208.59,208.55,1.6516]
[1735829876112,19.88270402,208.57,208.55,1.6516]
[1735829878189,19.88270402,208.57,208.5,7.8681]
[1735829878502,19.88270402,208.53,208.5,1.6029]
[1735829878679,19.88270402,208.51,208.5,1.6029]
[1735829879189,19.88270402,208.51,208.45,7.8137]
[1735829879901,19.88270402,208.48,208.45,1.5471]
[1735829880610,19.88270402,208.46,208.45,1.5471]
[1735829880820,19.88270402,208.46,208.4,7.8579]
[1735829880987,19.88270402,208.47,208.4,27.74060402]
[1735829881183,19.88270402,208.46,208.4,7.8579]
[1735829882213,19.88270402,208.48,208.41,19.88270402]
[1735829882594,19.88270402,208.5,208.42,19.88270402]
[1735829882793,19.88270402,208.5,208.43,19.88270402]
[1735829882994,19.88270402,208.49,208.42,19.88270402]
[1735829883525,19.88270402,208.51,208.44,19.88270402]
[1735829883822,19.88270402,208.49,208.42,19.88270402]
[1735829884020,19.88270402,208.48,208.41,19.88270402]
[1735829884203,20.0,208.54,208.4,7.8579]
[1735829884204,19.88270402,208.51,208.44,19.88270402]
[1735829884408,19.88270402,208.5,208.42,19.88270402]
[1735829884719,19.88270402,208.49,208.4,8.57733972]
[1735829884925,19.88270402,208.49,208.42,19.88270402]
[1735829885219,19.88270402,208.47,208.4,27.74060402]
[1735829885833,19.88270402,208.48,208.41,19.88270402]
[1735829886487,19.88270402,208.47,208.4,7.8579]
[1735829887426,19.88270402,208.49,208.41,19.88270402]
[1735829887605,19.88270402,208.51,208.43,19.88270402]
[1735829888829,19.88270402,208.51,208.42,0.71934493]
[1735829888830,19.88270402,208.51,208.45,19.88270402]
[1735829888993,19.88270402,208.53,208.45,19.88270402]
[1735829890609,19.88270402,208.51,208.45,19.88270402]
[1735829890808,19.88270402,208.51,208.43,19.88270402]
[1735829891309,16.98579999,208.58,208.4,8.57735211]
[1735829891310,19.88270402,208.58,208.5,19.88270402]
[1735829891516,19.88270402,208.6,208.52,19.88270402]
[1735829891724,20.0,208.57,208.52,19.88270402]
[1735829891905,19.88270402,208.62,208.54,19.88270402]
[1735829892105,19.88270402,208.62,208.55,1.5521]
[1735829892355,19.88270402,208.6,208.55,1.5521]
[1735829892648,19.88270402,208.58,208.55,1.5521]
[1735829892809,19.88270402,208.6,208.55,1.5521]
[1735829893446,19.88270402,208.62,208.55,1.5521]
[1735829894733,19.88270402,208.64,208.56,19.88270402]
[1735829894921,37.49026342,208.73,208.58,19.88270402]
[1735829894922,19.88270402,208.66,208.58,19.88270402]
[1735829895116,44.40758052,208.75,208.6,19.88270402]
[1735829895117,19.88270402,208.68,208.6,19.88270402]
[1735829895324,19.88270402,208.7,208.62,19.88270402]
[1735829895636,19.88270402,208.68,208.62,19.88270402]
[1735829895817,19.88270402,208.68,208.61,0.71870445]
[1735829896235,19.88270402,208.66,208.58,19.88270402]
[1735829896423,19.88270402,208.68,208.6,19.88270402]
[1735829897628,19.88270402,208.64,208.56,20.60151446]
[1735829897827,19.88270402,208.61,208.55,1.5521]
[1735829899660,19.88270402,208.59,208.55,1.5521]
[1735829902027,19.88270402,208.58,208.55,1.5521]
[1735829902226,20.0,208.56,208.55,1.5521]
[1735829902429,19.88270402,208.56,208.5,1.605]
[1735829902651,19.88270402,208.51,208.5,1.605]
[1735829902824,19.88270402,208.51,208.43,1.605]
[1735829903024,19.88270402,208.49,208.43,1.605]
[1735829903761,19.88270402,208.44,208.43,1.605]
[1735829903947,19.88270402,208.44,208.36,6.76233794]
[1735829903948,19.88270402,208.44,208.38,1.6203]
[1735829904280,19.88270402,208.43,208.38,1.6203]
[1735829904578,11.20729999,208.56,208.39,0.71965957]
[1735829905258,20.0,208.52,208.39,0.71965957]
[1735829905575,19.88270402,208.47,208.4,19.88270402]
[1735829905773,19.88270402,208.43,208.38,1.6203]
[1735829906072,19.88270402,208.4,208.38,1.6203]
[1735829906457,19.88270402,208.41,208.38,1.6203]
[1735829906854,19.88270402,208.4,208.38,1.6203]
[1735829907667,19.88270402,208.39,208.38,1.6203]
[1735829909082,19.88270402,208.39,208.33,1.5158]
[1735829909293,19.88270402,208.37,208.33,1.5158]
[1735829909571,0.12549,208.46,208.33,1.5158]
[1735829909572,19.88270402,208.38,208.33,1.5158]
[1735829910351,19.88270402,208.41,208.34,19.88270402]
[1735829910550,19.88270402,208.4,208.35,0.71966301]
[1735829910757,11.9914,208.49,208.33,1.5158]
[1735829910758,19.88270402,208.38,208.33,1.5158]
[1735829910958,19.88270402,208.34,208.33,1.5158]
[1735829912090,20.0,208.31,208.22,5.71993127]
[1735829912389,20.0,208.31,208.17,5.0]
[1735829912390,19.88270402,208.24,208.19,1.5745]
[1735829912762,19.88270402,208.25,208.19,1.5745]
[1735829913064,19.88270402,208.3,208.19,1.5745]
[1735829913065,20.0,208.27,208.19,1.5745]
[1735829913266,19.88270402,208.21,208.19,1.5745]
[1735829913471,19.88270402,208.22,208.19,1.5745]
[1735829913658,20.0,208.27,208.19,1.5745]
[1735829913974,19.88270402,208.26,208.19,22.17747537]
[1735829914149,19.88270402,208.28,208.21,19.88270402]
[1735829914351,19.88270402,208.3,208.23,19.88270402]
[1735829914550,6.2433,208.39,208.25,19.88270402]
[1735829914780,19.88270402,208.32,208.24,19.88270402]
[1735829914972,19.88270402,208.31,208.24,19.88270402]
[1735829915165,19.88270402,208.32,208.24,19.88270402]
[1735829915365,19.88270402,208.3,208.23,20.60278869]
[1735829915566,19.88270402,208.28,208.21,19.88270402]
[1735829915886,19.88270402,208.27,208.19,22.17736637]
[1735829916071,19.88270402,208.26,208.19,22.17736637]
[1735829916267,12.12449,208.35,208.2,19.88270402]
[1735829916268,19.88270402,208.27,208.2,19.88270402]
[1735829916468,19.88270402,208.26,208.21,0.72017219]
[1735829916660,19.88270402,208.27,208.21,0.72017219]
[1735829916990,19.88270402,208.26,208.19,2.29469385]
[1735829917288,16.99899999,208.35,208.21,19.88270402]
[1735829917289,19.88270402,208.29,208.21,19.88270402]
[1735829917495,19.88270402,208.3,208.22,19.88270402]
[1735829917855,19.88270402,208.3,208.23,19.88270402]
[1735829918192,19.88270402,208.33,208.25,19.88270402]
[1735829918683,19.88270402,208.33,208.26,19.88270402]
[1735829919054,19.88270402,208.35,208.28,21.42400402]
[1735829919261,19.88270402,208.37,208.29,24.027864]
[1735829919466,19.88270402,208.39,208.31,24.027864]
[1735829919775,19.88270402,208.38,208.31,20.6025074]
[1735829920193,11.9925,208.47,208.31,20.6025074]
[1735829920194,19.88270402,208.37,208.31,24.49668738]
[1735829920575,19.88270402,208.38,208.31,24.49668738]
[1735829921982,19.88270402,208.38,208.31,44.3793914]
[1735829922504,19.88270402,208.36,208.29,19.88270402]
[1735829922807,19.88270402,208.38,208.3,43.91056802]
[1735829922970,19.88270402,208.38,208.3,44.63036037]
[1735829923276,19.88270402,208.38,208.31,19.88270402]
[1735829923485,19.88270402,208.39,208.32,19.88270402]
[1735829923704,19.88270402,208.39,208.31,19.88270402]
[1735829923869,19.88270402,208.38,208.3,44.63036037]
[1735829924071,19.88270402,208.39,208.32,19.88270402]
[1735829924291,19.88270402,208.4,208.32,19.88270402]
[1735829924593,0.12549,208.46,208.38,26.35890402]
[1735829924594,19.88270402,208.46,208.38,26.35890402]
[1735829925277,30.4099,208.56,208.38,6.4762]
[1735829925278,19.88270402,208.44,208.38,6.4762]
[1735829925684,19.88270402,208.45,208.38,6.4762]
[1735829925886,19.88270402,208.43,208.38,6.4762]
[1735829926272,19.88270402,208.45,208.38,6.4762]
[1735829926787,19.88270402,208.45,208.38,7.19574133]
[1735829927094,4.99999999,208.57,208.4,19.88270402]
[1735829927095,19.88270402,208.48,208.4,19.88270402]
[1735829927395,19.88270402,208.52,208.45,19.88270402]
[1735829927595,19.88270402,208.52,208.45,20.60201171]
[1735829927790,19.88270402,208.52,208.44,43.65958802]
[1735829927976,19.88270402,208.54,208.47,43.91056802]
[1735829928182,19.88270402,208.56,208.49,19.88270402]
[1735829928574,19.88270402,208.56,208.48,20.60192842]
[1735829928783,19.88270402,208.54,208.48,0.7192244]
[1735829928985,19.88270402,208.53,208.45,19.88270402]
[1735829929188,19.88270402,208.53,208.45,20.60197603]
[1735829929584,19.88270402,208.53,208.46,19.88270402]
[1735829929816,19.88270402,208.53,208.45,0.71927201]
[1735829929817,19.88270402,208.51,208.43,21.42320402]
[1735829930107,19.88270402,208.49,208.43,1.5405]
[1735829930700,19.88270402,208.48,208.43,1.5405]
[1735829931205,0.12549,208.56,208.43,1.5405]
[1735829931206,19.88270402,208.49,208.43,1.5405]
[1735829931396,19.88270402,208.5,208.43,1.5405]
[1735829931599,19.88270402,208.49,208.43,1.5405]
[1735829932276,19.88270402,208.5,208.43,21.42320402]
[1735829932476,19.88270402,208.5,208.43,1.5405]
[1735829932990,19.88270402,208.49,208.43,1.5405]
[1735829933887,19.88270402,208.47,208.43,1.5405]
[1735829934084,19.88270402,208.49,208.43,1.5405]
[1735829935386,19.88270402,208.49,208.43,21.42320402]
[1735829935606,19.88270402,208.51,208.43,21.42320402]
[1735829935809,11.9851,208.6,208.47,19.88270402]
[1735829935994,19.88270402,208.57,208.49,26.44300402]
[1735829936194,19.88270402,208.57,208.49,27.16218334]
[1735829936792,19.88270402,208.59,208.52,1.5693]
[1735829937120,24.88270401,208.7,208.55,19.88270402]
[1735829937121,19.88270402,208.63,208.55,19.88270402]
[1735829938086,19.88270402,208.61,208.53,20.60177161]
[1735829938286,19.88270402,208.59,208.52,1.5693]
[1735829938714,19.88270402,208.59,208.52,22.17109257]
[1735829938913,19.88270402,208.59,208.52,2.28838855]
[1735829939893,19.88270402,208.58,208.52,2.28838855]
[1735829940189,19.88270402,208.57,208.52,2.28838855]
[1735829940523,19.88270402,208.56,208.52,1.5693]
[1735829940716,11.9817,208.65,208.52,1.5693]
[1735829940717,19.88270402,208.58,208.52,1.5693]
[1735829940919,19.88270402,208.62,208.55,19.88270402]
[1735829941130,19.88270402,208.6,208.54,0.7189601]
[1735829941425,19.88270402,208.62,208.54,19.88270402]
[1735829941604,19.88270402,208.63,208.56,19.88270402]
[1735829941925,20.0,208.66,208.57,20.60162335]
[1735829942227,19.88270402,208.64,208.57,20.60162335]
[1735829942527,11.98,208.69,208.53,20.60159941]
[1735829942528,19.88270402,208.61,208.53,20.60159941]
[1735829942739,11.98,208.69,208.52,1.5693]
[1735829942740,19.88270402,208.57,208.52,1.5693]
[1735829945518,19.88270402,208.56,208.52,1.5693]
[1735829945696,19.88270402,208.53,208.52,1.5693]
[1735829946801,19.88270402,208.53,208.46,1.6028]
[1735829946998,19.88270402,208.49,208.46,1.6028]
[1735829947200,19.88270402,208.48,208.46,1.6028]
[1735829947613,19.88270402,208.47,208.46,1.6028]
[1735829947902,19.88270402,208.47,208.41,1.5139]
[1735829948100,19.88270402,208.42,208.41,1.5139]
[1735829948421,19.88270402,208.42,208.35,1.5139]
[1735829948725,19.88270402,208.4,208.35,1.5139]
[1735829949109,19.88270402,208.41,208.35,1.5139]
[1735829949305,19.88270402,208.4,208.35,1.5139]
[1735829950508,19.88270402,208.41,208.35,1.5139]
[1735829950698,19.88270402,208.4,208.35,1.5139]
[1735829950908,19.88270402,208.41,208.35,1.5139]
[1735829951624,19.88270402,208.39,208.35,1.5139]
[1735829951826,11.9934,208.45,208.35,1.5139]
[1735829951827,19.88270402,208.41,208.35,1.5139]
[1735829952004,23.9819,208.49,208.35,1.5139]
[1735829952005,6.0264,208.53,208.37,0.12549]
[1735829952208,19.88270402,208.48,208.42,19.88270402]
[1735829952403,19.88270402,208.5,208.42,19.88270402]
[1735829952617,19.88270402,208.52,208.44,19.88270402]
[1735829952823,19.88270402,208.5,208.45,1.5279]
[1735829953336,19.88270402,208.52,208.45,1.5279]
[1735829954026,19.88270402,208.54,208.46,19.88270402]
[1735829954429,19.88270402,208.52,208.46,19.88270402]
[1735829954729,19.88270402,208.52,208.45,1.5279]
[1735829954922,19.88270402,208.51,208.45,21.41060402]
[1735829955933,19.88270402,208.51,208.45,1.5279]
[1735829956307,19.88270402,208.49,208.45,1.5279]
[1735829956524,19.88270402,208.46,208.4,8.4]
[1735829956711,19.88270402,208.44,208.4,8.4]
[1735829957621,19.88270402,208.42,208.4,8.4]
[1735829958119,19.88270402,208.41,208.4,8.4]
[1735829958433,19.88270402,208.42,208.4,8.4]
[1735829961131,20.0,208.43,208.4,8.4]
[1735829961313,19.88270402,208.46,208.4,8.4]
[1735829961508,19.88270402,208.44,208.4,8.4]
[1735829962015,19.88270402,208.46,208.4,8.4]
[1735829962324,19.88270402,208.48,208.42,19.88270402]
[1735829962505,67.49764774,208.6,208.4,8.4]
[1735829962506,19.88270402,208.52,208.44,19.88270402]
[1735829964927,19.88270402,208.52,208.46,19.88270402]
[1735829965126,19.88270402,208.54,208.46,26.29350402]
[1735829965310,19.88270402,208.56,208.48,19.88270402]
[1735829965510,20.0,208.53,208.48,19.88270402]
[1735829965836,19.88270402,208.56,208.48,19.88270402]
[1735829966035,19.88270402,208.54,208.48,19.88270402]
[1735829967123,19.88270402,208.54,208.46,26.29350402]
[1735829968611,19.88270402,208.56,208.48,19.88270402]
[1735829969135,19.88270402,208.54,208.46,26.29350402]
[1735829969309,19.88270402,208.5,208.43,19.88270402]
[1735829969507,4.99999999,208.57,208.41,26.20960402]
[1735829969508,19.88270402,208.48,208.41,26.20960402]
[1735829969808,19.88270402,208.46,208.41,6.3269]
[1735829970137,19.88270402,208.45,208.41,6.3269]
[1735829971440,19.88270402,208.47,208.41,6.3269]
[1735829972133,19.88270402,208.49,208.41,6.3269]
[1735829972339,19.88270402,208.49,208.42,19.88270402]